bitfinex/quotes_SOLUSD_20250316
["timestamp","ask_amount","ask_price","bid_price","bid_amount"]
[1742091433037,8.41e-05,134.91,134.9,106.99232314]
[1742091433335,7.736e-05,134.94,134.91,0.14216157]
[1742091433523,7.736e-05,134.94,134.9,113.248]
[1742091435027,7.736e-05,134.94,134.93,22.68211584]
[1742091435413,6.27067736,134.94,134.9,25.1352]
[1742091435624,15.27091584,134.92,134.9,0.063]
[1742091436619,33.9205647,134.93,134.9,7.4758]
[1742091437240,15.27091584,134.92,134.9,0.063]
[1742091438243,23.87016042,134.92,134.9,0.063]
[1742091439735,23.87016042,134.91,134.9,0.063]
[1742091441034,50.21643242,134.91,134.9,0.063]
[1742091441726,58.06023242,134.91,134.9,0.063]
[1742091442639,50.64793242,134.91,134.9,0.063]
[1742091443945,50.36360928,134.91,134.9,0.063]
[1742091444153,7.8438,134.91,134.9,0.063]
[1742091445945,31.99828356,134.91,134.9,0.063]
[1742091446647,7.8438,134.91,134.9,0.063]
[1742091450057,50.36360928,134.91,134.9,0.063]
[1742091451158,26.49344886,134.91,134.9,0.063]
[1742091453053,18.80276933,134.91,134.9,0.063]
[1742091453255,42.67292975,134.91,134.9,0.063]
[1742091458257,15.43157212,134.91,134.9,0.063]
[1742091465269,41.77784412,134.91,134.9,0.063]
[1742091465944,49.49544412,134.91,134.9,0.063]
[1742091473171,49.63643058,134.91,134.9,0.063]
[1742091474253,49.48331011,134.91,134.9,0.063]
[1742091475062,0.28432314,134.87,134.85,0.063]
[1742091475260,34.21242365,134.86,134.85,0.063]
[1742091477371,0.28432314,134.85,134.81,0.063]
[1742091477562,34.21242365,134.82,134.81,0.063]
[1742091477764,40.75242365,134.82,134.81,0.063]
[1742091479074,25.18964886,134.82,134.81,0.063]
[1742091479251,33.92810051,134.82,134.81,0.063]
[1742091479452,18.64964886,134.83,134.81,0.063]
[1742091479981,82.2,134.84,134.81,0.063]
[1742091480675,15.27845165,134.82,134.81,0.063]
[1742091480865,33.92810051,134.82,134.81,0.063]
[1742091481184,18.64964886,134.82,134.81,0.063]
[1742091481566,15.27845165,134.83,134.81,0.063]
[1742091481771,33.92810051,134.83,134.81,0.063]
[1742091482370,18.64964886,134.83,134.81,0.063]
[1742091482765,15.27845165,134.82,134.81,0.063]
[1742091482965,33.92810051,134.82,134.81,0.063]
[1742091484017,41.34530051,134.82,134.81,0.063]
[1742091484173,102.74343025,134.82,134.81,0.063]
[1742091485774,33.92810051,134.82,134.81,0.063]
[1742091492791,15.27845165,134.83,134.81,0.063]
[1742091492997,0.15777299,134.82,134.81,0.063]
[1742091493686,0.15777299,134.82,134.81,15.34145165]
[1742091493888,0.15777299,134.82,134.81,0.063]
[1742091495492,0.15777299,134.82,134.81,15.34145165]
[1742091495691,0.15777299,134.82,134.81,22.75925165]
[1742091498317,7.299e-05,134.82,134.81,22.75925165]
[1742091498884,9.358e-05,134.83,134.81,29.29925165]
[1742091499097,9.358e-05,134.83,134.82,15.27845165]
[1742091500000,9.358e-05,134.83,134.82,22.69565165]
[1742091500983,9.358e-05,134.83,134.82,7.4172]
[1742091501396,15.27854523,134.83,134.81,0.063]
[1742091501614,15.27845165,134.82,134.81,0.063]
[1742091501807,15.27854523,134.83,134.81,7.4808]
[1742091502019,15.27854523,134.83,134.81,0.063]
[1742091502020,9.358e-05,134.83,134.81,0.063]
[1742091502392,15.27845165,134.82,134.81,0.063]
[1742091502691,21.81845165,134.82,134.81,0.063]
[1742091504594,48.16962365,134.82,134.81,0.063]
[1742091507809,63.4480753,134.82,134.81,0.063]
[1742091508014,109.28343025,134.82,134.81,0.063]
[1742091511315,109.28343025,134.82,134.8,0.063]
[1742091511521,34.21242365,134.81,134.8,0.063]
[1742091512219,41.63022365,134.81,134.8,0.063]
[1742091512440,41.63022365,134.81,134.78,0.063]
[1742091512441,20.0,134.79,134.78,0.063]
[1742091512738,35.27845165,134.79,134.78,0.063]
[1742091512939,35.42973704,134.79,134.78,0.063]
[1742091513335,54.36370904,134.79,134.78,0.063]
[1742091513641,35.42973704,134.79,134.78,0.063]
[1742091518247,15.42973704,134.79,134.78,0.063]
[1742091526654,22.84863704,134.79,134.78,0.063]
[1742091527858,41.78260904,134.79,134.78,0.063]
[1742091528263,23.13296018,134.79,134.78,0.063]
[1742091529068,15.71406018,134.79,134.78,0.063]
[1742091529366,15.42973704,134.79,134.78,0.063]
[1742091530038,22.84863704,134.79,134.78,0.063]
[1742091530239,23.13296018,134.79,134.78,0.063]
[1742091532360,15.71406018,134.79,134.78,0.063]
[1742091532965,15.85140282,134.79,134.78,0.063]
[1742091534355,15.70011743,134.79,134.78,0.063]
[1742091535268,23.11901743,134.79,134.78,0.063]
[1742091535444,15.41579429,134.79,134.78,0.063]
[1742091536262,15.70011743,134.79,134.78,0.063]
[1742091536467,23.11901743,134.79,134.78,0.063]
[1742091537871,15.70011743,134.79,134.78,0.063]
[1742091538650,15.41579429,134.79,134.78,0.063]
[1742091542973,41.76866629,134.79,134.78,0.063]
[1742091543174,0.28432314,134.76,134.72,2.5401608]
[1742091543365,35.56277479,134.73,134.72,2.5401608]
[1742091544869,42.98497479,134.73,134.72,2.5401608]
[1742091546962,61.63462365,134.73,134.72,2.5401608]
[1742091547176,101.133972,134.72,134.71,0.063]
[1742091547482,97.76277479,134.72,134.71,0.063]
[1742091548274,104.03845165,134.72,134.71,0.063]
[1742091548859,122.97242365,134.72,134.71,0.063]
[1742091549656,104.32277479,134.72,134.71,0.063]
[1742091549864,111.74557479,134.72,134.71,0.063]
[1742091550274,26.946272,134.71,134.7,0.063]
[1742091550479,42.22472365,134.71,134.7,0.063]
[1742091550655,20.0,134.68,134.67,0.063]
[1742091550859,35.56277479,134.68,134.67,0.063]
[1742091551075,35.56277479,134.68,134.63,6.9905]
[1742091551276,15.27845165,134.66,134.62,9.0653]
[1742091551590,6.56,134.67,134.62,24.34375165]
[1742091551591,21.83845165,134.67,134.62,24.34375165]
[1742091551884,82.2,134.7,134.64,15.27845165]
[1742091552061,15.27845165,134.69,134.64,15.27845165]
[1742091553075,0.15147823,134.65,134.64,15.27845165]
[1742091553271,0.15147823,134.65,134.64,41.35530051]
[1742091553471,7.823e-05,134.65,134.64,41.35530051]
[1742091553672,7.823e-05,134.65,134.64,7.4272]
[1742091555390,7.823e-05,134.65,134.63,7.4277]
[1742091556104,15.27845165,134.64,134.61,7.4286]
[1742091556386,7.823e-05,134.65,134.61,22.70705165]
[1742091556877,7.823e-05,134.65,134.63,15.27845165]
[1742091557075,7.823e-05,134.65,134.62,15.27845165]
[1742091557278,7.823e-05,134.65,134.61,26.0007]
[1742091557279,7.823e-05,134.65,134.61,22.70705165]
[1742091558388,15.27852988,134.65,134.61,7.4286]
[1742091558693,15.27852988,134.65,134.6,7.4292]
[1742091559106,15.27852988,134.65,134.6,22.70765165]
[1742091559680,15.27845165,134.62,134.58,7.43]
[1742091560387,15.27845165,134.63,134.58,7.43]
[1742091562192,104.03845165,134.64,134.59,15.27845165]
[1742091562398,6.56,134.64,134.6,15.27845165]
[1742091562794,7.823e-05,134.65,134.62,15.27845165]
[1742091563000,7.823e-05,134.65,134.63,15.27845165]
[1742091563578,7.823e-05,134.65,134.58,87.1201066]
[1742091563579,7.823e-05,134.65,134.64,15.27845165]
[1742091564288,0.03007823,134.65,134.64,15.27845165]
[1742091565091,0.03007823,134.65,134.64,22.70565165]
[1742091566296,0.03007823,134.65,134.64,31.37754034]
[1742091570993,0.31440137,134.65,134.6,0.063]
[1742091571194,23.95034034,134.64,134.6,0.063]
[1742091571394,23.98041857,134.65,134.6,0.063]
[1742091572015,0.03007823,134.65,134.6,31.44264034]
[1742091572823,0.03007823,134.65,134.6,24.01334034]
[1742091573002,0.15362486,134.61,134.6,24.01334034]
[1742091576024,0.15362486,134.61,134.6,31.44274034]
[1742091584731,0.15362486,134.61,134.6,50.0923892]
[1742091585135,2.486e-05,134.61,134.6,50.0923892]
[1742091585437,0.00238279,134.62,134.6,51.6029892]
[1742091585738,0.00238279,134.62,134.61,23.95034034]
[1742091586253,0.00238279,134.62,134.61,15.32783661]
[1742091588349,0.00238279,134.62,134.61,22.75663661]
[1742091589169,0.00238279,134.62,134.61,7.4288]
[1742091589455,0.00238279,134.62,134.61,22.75663661]
[1742091591618,0.00238279,134.62,134.61,41.40628547]
[1742091593059,0.15465964,134.62,134.61,41.40628547]
[1742091594359,0.15227685,134.62,134.61,50.0294924]
[1742091597461,7.685e-05,134.62,134.61,145.48881554]
[1742091597751,3.84e-06,134.67,134.64,38.64964886]
[1742091597955,3.84e-06,134.67,134.66,42.6006924]
[1742091599547,3.84e-06,134.67,134.66,50.0267924]
[1742091601043,2.748e-05,134.68,134.67,18.64964886]
[1742091601263,2.748e-05,134.68,134.67,42.6006924]
[1742091601646,2.748e-05,134.68,134.67,50.0261924]
[1742091603251,2.748e-05,134.68,134.67,31.37654354]
[1742091604646,0.15268582,134.7,134.67,156.17983594]
[1742091604850,8.582e-05,134.7,134.69,47.90208708]
[1742091605961,8.582e-05,134.7,134.69,31.37544354]
[1742091606168,8.582e-05,134.7,134.69,23.95104354]
[1742091609479,31.37654354,134.68,134.62,23.95104354]
[1742091609773,6.0947,134.66,134.62,23.95104354]
[1742091610470,25.47524354,134.65,134.6,24.01404354]
[1742091610778,1.5242,134.65,134.62,23.95104354]
[1742091610981,1.5242,134.65,134.61,23.95104354]
[1742091611182,1.5242,134.65,134.6,0.063]
[1742091611475,1.5242,134.65,134.62,0.063]
[1742091613070,0.13861647,134.63,134.62,0.063]
[1742091615074,24.08966001,134.63,134.62,0.063]
[1742091615256,0.13861647,134.63,134.62,0.063]
[1742091615858,0.13861647,134.63,134.6,7.4922]
[1742091616075,0.13861647,134.63,134.62,23.95104354]
[1742091616862,0.13861647,134.63,134.62,31.37934354]
[1742091618067,0.13861647,134.63,134.62,23.95104354]
[1742091618576,0.13861647,134.63,134.62,31.37934354]
[1742091624774,1.647e-05,134.63,134.62,73.98003594]
[1742091625775,0.03001647,134.63,134.62,73.98003594]
[1742091628176,1.501e-05,134.66,134.64,38.64964886]
[1742091628361,1.501e-05,134.66,134.65,30.53104354]
[1742091628861,1.501e-05,134.66,134.65,129.8806924]
[1742091629079,0.15315605,134.69,134.66,18.64964886]
[1742091629389,0.15315605,134.69,134.67,23.95104354]
[1742091629781,0.15315605,134.69,134.67,31.37654354]
[1742091631098,0.15315605,134.69,134.67,23.95104354]
[1742091632506,0.15315605,134.69,134.66,23.95104354]
[1742091632702,0.15315605,134.69,134.64,27.427]
[1742091632703,13.87365605,134.69,134.65,23.95104354]
[1742091632905,1.71333777,134.68,134.64,23.95104354]
[1742091633109,0.1511728,134.67,134.63,23.95104354]
[1742091633404,24.10221634,134.67,134.62,23.95104354]
[1742091633612,24.10221634,134.67,134.61,24.01404354]
[1742091633821,23.95104354,134.66,134.61,24.01404354]
[1742091634107,30.96653948,134.67,134.61,24.01404354]
[1742091634305,30.96653948,134.67,134.62,23.95104354]
[1742091634606,38.39243948,134.67,134.62,23.95104354]
[1742091635701,38.39243948,134.67,134.61,24.01404354]
[1742091637287,38.39243948,134.67,134.62,23.95104354]
[1742091638903,23.95104354,134.66,134.61,24.01404354]
[1742091639119,30.24694354,134.64,134.61,0.063]
[1742091639289,30.24694354,134.64,134.62,0.063]
[1742091640213,32.95654354,134.63,134.62,0.063]
[1742091640704,33.24086668,134.63,134.62,0.063]
[1742091641896,51.89051554,134.63,134.62,0.063]
[1742091642894,0.28432314,134.62,134.61,0.063]
[1742091643087,0.28432314,134.62,134.57,0.063]
[1742091643088,6.77032314,134.6,134.57,0.063]
[1742091643292,18.64964886,134.61,134.5,24.01404354]
[1742091643293,54.38808708,134.58,134.5,24.01404354]
[1742091643590,23.95104354,134.56,134.51,23.95104354]
[1742091643996,23.95104354,134.54,134.5,0.063]
[1742091644693,23.95104354,134.55,134.5,24.01404354]
[1742091644901,113.58304354,134.56,134.51,23.95104354]
[1742091645093,113.58304354,134.56,134.52,23.95104354]
[1742091645094,82.2,134.56,134.52,23.95104354]
[1742091645293,82.2,134.56,134.51,23.95104354]
[1742091646406,82.2,134.56,134.51,7.4342]
[1742091646623,82.2,134.56,134.52,23.95104354]
[1742091646911,82.2,134.56,134.51,31.38524354]
[1742091647297,82.2,134.56,134.51,23.95104354]
[1742091648017,82.2,134.56,134.51,31.38524354]
[1742091648918,82.2,134.56,134.5,0.063]
[1742091649106,82.2,134.56,134.51,23.95104354]
[1742091649698,82.2,134.56,134.52,23.95104354]
[1742091650119,82.2,134.56,134.53,23.95104354]
[1742091650414,30.43704354,134.58,134.53,23.95104354]
[1742091650712,6.486,134.58,134.54,23.95104354]
[1742091651598,6.486,134.58,134.54,31.38354354]
[1742091651894,6.486,134.58,134.55,23.95104354]
[1742091652095,6.486,134.58,134.54,23.95104354]
[1742091652793,0.03,134.57,134.54,23.95104354]
[1742091653015,0.1473682,134.55,134.53,23.95104354]
[1742091656736,0.1473682,134.55,134.5,0.063]
[1742091657017,0.1473682,134.55,134.53,23.95104354]
[1742091658922,0.1473682,134.55,134.54,23.95104354]
[1742091661522,0.1473682,134.55,134.53,31.38414354]
[1742091661730,7.5796682,134.55,134.5,24.01404354]
[1742091662006,23.95104354,134.54,134.5,0.063]
[1742091662214,29.96074354,134.53,134.5,0.063]
[1742091662415,25.57664354,134.52,134.5,0.063]
[1742091662629,1.6256,134.52,134.5,0.063]
[1742091663133,9.0598,134.52,134.5,0.063]
[1742091664405,1.6256,134.52,134.5,0.063]
[1742091664610,9.0595,134.52,134.5,0.063]
[1742091664832,1.6256,134.52,134.5,0.063]
[1742091666728,1.7729682,134.55,134.51,23.95104354]
[1742091667321,1.7729682,134.55,134.5,0.063]
[1742091667322,1.7729682,134.55,134.5,24.01404354]
[1742091667511,23.95104354,134.54,134.5,0.063]
[1742091667710,1.7729682,134.55,134.5,0.063]
[1742091667711,23.95104354,134.53,134.5,0.063]
[1742091669737,23.95104354,134.54,134.5,0.063]
[1742091669936,1.7729682,134.55,134.51,23.95104354]
[1742091670119,0.1473682,134.55,134.51,23.95104354]
[1742091671618,0.1473682,134.55,134.52,23.95104354]
[1742091671829,0.1473682,134.55,134.52,31.38464354]
[1742091672534,0.1473682,134.55,134.53,23.95104354]
[1742091673129,0.13905233,134.54,134.53,23.95104354]
[1742091673814,0.13905233,134.54,134.53,31.38424354]
[1742091675231,5.233e-05,134.54,134.53,31.38424354]
[1742091675522,0.15860936,134.55,134.54,7.6656]
[1742091675523,6.169e-05,134.55,134.54,7.6656]
[1742091675738,6.169e-05,134.55,134.54,38.29664354]
[1742091676132,6.169e-05,134.55,134.54,45.72934354]
[1742091678240,6.169e-05,134.55,134.53,0.063]
[1742091678432,6.169e-05,134.55,134.53,24.01404354]
[1742091678637,6.169e-05,134.55,134.54,23.95104354]
[1742091685041,6.169e-05,134.55,134.53,0.063]
[1742091685247,6.169e-05,134.55,134.54,23.95104354]
[1742091688435,0.03006169,134.55,134.54,23.95104354]
[1742091693071,0.19152345,134.55,134.54,23.95104354]
[1742091693473,0.19152345,134.55,134.54,31.38374354]
[1742091694456,0.19146176,134.55,134.54,31.38374354]
[1742091695972,0.12893754,134.61,134.54,31.38374354]
[1742091696183,0.12893754,134.61,134.59,23.95104354]
[1742091696554,0.12893754,134.61,134.6,23.95104354]
[1742091698196,0.12893754,134.61,134.59,23.95104354]
[1742091699498,0.12893754,134.61,134.6,23.95104354]
[1742091700394,0.12893754,134.61,134.6,31.38044354]
[1742091703764,3.754e-05,134.61,134.6,112.08044354]
[1742091703968,0.16957347,134.62,134.6,112.08044354]
[1742091704181,0.16957347,134.62,134.61,38.05984354]
[1742091706381,0.16957347,134.62,134.61,23.95104354]
[1742091706892,0.16957347,134.62,134.61,31.37984354]
[1742091712180,7.347e-05,134.62,134.61,31.37984354]
[1742091712584,7.347e-05,134.62,134.61,31.44284354]
[1742091713100,0.16220659,134.62,134.61,31.44284354]
[1742091719184,0.16220659,134.62,134.61,7.4918]
[1742091719391,0.16220659,134.62,134.61,31.44284354]
[1742091720394,0.16220659,134.62,134.61,22.82543371]
[1742091733019,0.31903531,134.62,134.61,22.82543371]
[1742091734326,0.15690219,134.62,134.61,22.82543371]
[1742091734499,0.15690219,134.62,134.61,15.39663371]
[1742091736135,0.15690219,134.62,134.61,22.82543371]
[1742091736828,0.15690219,134.62,134.61,15.39663371]
[1742091737518,0.15690219,134.62,134.61,22.82543371]
[1742091738614,0.15690219,134.62,134.61,0.063]
[1742091738814,0.15690219,134.62,134.61,15.39663371]
[1742091739834,0.15690219,134.62,134.61,22.82543371]
[1742091740828,0.15690219,134.62,134.61,29.40543371]
[1742091753042,0.31609326,134.62,134.61,29.40543371]
[1742091754355,0.15926454,134.62,134.61,29.40543371]
[1742091758645,0.15926454,134.62,134.61,15.39663371]
[1742091760846,0.15926454,134.62,134.61,22.82543371]
[1742091773051,0.29594797,134.62,134.61,22.82543371]
[1742091774466,0.1367569,134.62,134.61,22.82543371]
[1742091783174,0.13474836,134.64,134.61,84.44429169]
[1742091783365,0.13474836,134.64,134.63,35.33363371]
[1742091784465,0.13474836,134.64,134.63,42.76133371]
[1742091786670,0.13505852,134.65,134.63,42.76133371]
[1742091786869,0.13505852,134.65,134.64,21.89363371]
[1742091788686,0.13505852,134.65,134.64,29.32083371]
[1742091789190,7.653e-05,134.66,134.64,29.32083371]
[1742091792001,7.653e-05,134.66,134.65,15.33363371]
[1742091792568,7.653e-05,134.66,134.65,21.89363371]
[1742091792991,7.653e-05,134.66,134.65,29.32023371]
[1742091793202,0.15474379,134.66,134.65,29.32023371]
[1742091793968,0.15474379,134.66,134.65,22.76023371]
[1742091794386,0.15466726,134.66,134.65,7.4266]
[1742091794570,0.15466726,134.66,134.64,22.76053371]
[1742091796692,1.72536726,134.66,134.64,7.4269]
[1742091796898,1.75536726,134.66,134.64,22.76053371]
[1742091797091,1.75536726,134.66,134.65,15.33363371]
[1742091797297,1.75536726,134.66,134.65,22.76023371]
[1742091797909,1.75536726,134.66,134.65,7.4266]
[1742091798111,1.75536726,134.66,134.65,22.76023371]
[1742091799429,0.18466726,134.66,134.65,22.76023371]
[1742091811715,0.18466726,134.66,134.65,15.33363371]
[1742091813236,0.32978781,134.66,134.65,22.76023371]
[1742091814324,0.17512055,134.66,134.65,22.76023371]
[1742091817928,0.14587191,134.67,134.65,22.76023371]
[1742091818233,7.191e-05,134.67,134.66,15.33363371]
[1742091819229,7.191e-05,134.67,134.66,22.75973371]
[1742091819815,0.16712873,134.68,134.66,23.04405685]
[1742091820015,0.16712873,134.68,134.67,15.33363371]
[1742091821735,0.17706578,134.69,134.67,84.09366855]
[1742091822038,0.13481688,134.72,134.71,20.0]
[1742091822334,0.15091224,134.75,134.72,15.33363371]
[1742091822518,0.15091224,134.75,134.73,15.33363371]
[1742091823836,0.15091224,134.75,134.73,22.75583371]
[1742091829235,0.15091224,134.75,134.73,15.33363371]
[1742091829633,8.2932,134.73,134.71,15.33363371]
[1742091829843,8.2932,134.73,134.72,15.33363371]
[1742091830023,0.15091224,134.75,134.72,15.33363371]
[1742091830347,0.15091224,134.75,134.71,7.4233]
[1742091830526,0.15091224,134.75,134.73,15.33363371]
[1742091831127,0.15091224,134.75,134.72,15.33363371]
[1742091831128,7.57201224,134.75,134.72,15.33363371]
[1742091832347,0.15091224,134.75,134.73,15.33363371]
[1742091833024,0.33485522,134.74,134.73,15.33363371]
[1742091834438,0.18819392,134.74,134.73,15.33363371]
[1742091837158,0.18819392,134.74,134.73,22.75583371]
[1742091840731,0.18819392,134.74,134.72,15.39663371]
[1742091842150,0.18819392,134.74,134.73,15.33363371]
[1742091844465,0.18819392,134.74,134.73,22.75583371]
[1742091849551,0.18819392,134.74,134.73,29.31583371]
[1742091853055,0.33026274,134.74,134.73,29.31583371]
[1742091853240,0.33026274,134.74,134.73,21.89363371]
[1742091853656,0.33026274,134.74,134.72,0.063]
[1742091854245,0.17206882,134.74,134.72,0.063]
[1742091855362,0.17206882,134.74,134.73,15.33363371]
[1742091855661,0.17206882,134.74,134.73,22.75583371]
[1742091859148,0.17206882,134.74,134.72,0.063]
[1742091859868,0.17206882,134.74,134.72,15.39663371]
[1742091860557,0.17206882,134.74,134.72,22.81923371]
[1742091860863,0.17206882,134.74,134.73,22.75583371]
[1742091871867,0.17206882,134.74,134.72,22.81933371]
[1742091872578,0.17206882,134.74,134.72,0.063]
[1742091872964,1.6543,134.73,134.72,0.063]
[1742091873163,1.81042865,134.73,134.72,0.063]
[1742091874087,35.79371122,134.73,134.72,0.063]
[1742091874579,42.17431122,134.73,134.72,0.063]
[1742091875086,34.26287751,134.73,134.72,0.063]
[1742091880285,26.84067751,134.73,134.72,0.063]
[1742091884687,34.26287751,134.73,134.72,0.063]
[1742091886792,26.84067751,134.73,134.72,0.063]
[1742091889572,18.80577751,134.73,134.72,0.063]
[1742091890988,8.39912314,134.68,134.65,0.063]
[1742091891189,42.58341726,134.67,134.65,0.063]
[1742091891993,26.07574886,134.66,134.65,0.063]
[1742091893178,26.22777172,134.66,134.65,0.063]
[1742091893574,50.44586326,134.66,134.65,0.063]
[1742091893793,50.44586326,134.66,134.63,0.063]
[1742091893794,18.933972,134.65,134.63,0.063]
[1742091894000,31.3609684,134.64,134.63,0.063]
[1742091894174,26.21851043,134.65,134.63,0.063]
[1742091894497,26.07634886,134.65,134.63,0.063]
[1742091894673,50.01011726,134.65,134.63,0.063]
[1742091895092,26.07634886,134.65,134.63,0.063]
[1742091895306,18.64964886,134.65,134.63,0.063]
[1742091896571,50.01001726,134.65,134.63,0.063]
[1742091897981,26.07624886,134.65,134.63,0.063]
[1742091900085,18.64964886,134.65,134.63,0.063]
[1742091901998,96.48028443,134.66,134.63,15.39952462]
[1742091901999,82.35202286,134.66,134.63,15.39952462]
[1742091902192,82.35202286,134.66,134.64,15.33652462]
[1742091902584,0.15202286,134.66,134.64,15.33652462]
[1742091902784,0.15202286,134.66,134.63,15.39952462]
[1742091903083,0.15202286,134.66,134.65,15.33652462]
[1742091904808,0.15202286,134.66,134.65,22.76312462]
[1742091905107,0.15202286,134.66,134.64,22.76352462]
[1742091908221,0.15202286,134.66,134.64,7.427]
[1742091908608,0.15202286,134.66,134.64,22.76352462]
[1742091909484,0.15202286,134.66,134.65,15.33652462]
[1742091911012,0.15202286,134.66,134.65,22.76312462]
[1742091913112,0.28762322,134.66,134.65,22.76312462]
[1742091914109,0.31762322,134.66,134.65,22.76312462]
[1742091914293,0.16560036,134.66,134.65,22.76312462]
[1742091915014,6.526e-05,134.73,134.7,0.5]
[1742091915216,0.15886664,134.75,134.73,20.0]
[1742091915517,0.15886664,134.75,134.73,36.83042462]
[1742091916093,7.664e-05,134.74,134.73,36.83042462]
[1742091916305,7.664e-05,134.74,134.73,45.3980937]
[1742091916709,7.664e-05,134.74,134.73,52.8202937]
[1742091920399,7.664e-05,134.74,134.73,51.3263937]
[1742091921011,7.664e-05,134.74,134.73,31.3263937]
[1742091921210,42.5539192,134.74,134.69,23.9041937]
[1742091922601,18.6497255,134.74,134.69,23.9041937]
[1742091922801,42.5539192,134.74,134.69,23.9041937]
[1742091923717,18.64964886,134.72,134.66,7.4257]
[1742091923900,18.64964886,134.72,134.68,23.9041937]
[1742091924299,42.55384256,134.72,134.67,23.9041937]
[1742091924721,18.64964886,134.7,134.66,23.9041937]
[1742091925023,30.3078937,134.69,134.64,23.9041937]
[1742091925227,31.9415937,134.69,134.64,23.9041937]
[1742091925406,8.0374,134.69,134.65,23.9041937]
[1742091926022,18.64964886,134.68,134.66,23.9041937]
[1742091927430,18.64964886,134.68,134.67,23.9041937]
[1742091928324,82.2,134.71,134.67,23.9041937]
[1742091928531,18.64964886,134.7,134.68,23.9041937]
[1742091929130,18.64964886,134.7,134.68,31.3288937]
[1742091929531,18.64964886,134.7,134.69,23.9041937]
[1742091930233,82.2,134.71,134.69,23.9041937]
[1742091931434,82.2,134.71,134.69,31.3280937]
[1742091933120,0.16196672,134.7,134.69,31.3280937]
[1742091934332,0.16196672,134.7,134.68,23.9041937]
[1742091934529,0.16196672,134.7,134.67,23.9041937]
[1742091934934,0.16196672,134.7,134.68,23.9041937]
[1742091935939,0.16196672,134.7,134.69,23.9041937]
[1742091936436,0.16196672,134.7,134.69,31.3285937]
[1742091938139,6.672e-05,134.7,134.69,55.2327874]
[1742091938446,7.078e-05,134.71,134.69,61.7927874]
[1742091938620,7.078e-05,134.71,134.7,47.8083874]
[1742091940331,7.078e-05,134.71,134.7,23.9041937]
[1742091941925,7.078e-05,134.71,134.7,31.3280937]
[1742091945237,7.078e-05,134.71,134.7,55.2322874]
[1742091945430,8.165e-05,134.72,134.7,55.2322874]
[1742091945632,8.165e-05,134.72,134.71,23.9041937]
[1742091946145,8.165e-05,134.72,134.71,31.3274937]
[1742091948820,6.198e-05,134.74,134.73,20.0]
[1742091949023,6.198e-05,134.74,134.73,50.4441937]
[1742091949729,7.125e-05,134.75,134.74,23.9041937]
[1742091950449,4.111e-05,134.76,134.74,55.2300874]
[1742091950742,4.111e-05,134.76,134.75,47.8083874]
[1742091952944,4.111e-05,134.76,134.75,55.2294874]
[1742091953146,0.13767708,134.76,134.75,55.2294874]
[1742091954347,0.13763597,134.76,134.75,55.2294874]
[1742091956138,0.13763597,134.76,134.75,31.3252937]
[1742091960851,0.13763597,134.76,134.75,31.3252937]
[1742091962951,0.16763597,134.76,134.75,31.3252937]
[1742091967266,0.16763597,134.76,134.75,55.2294874]
[1742091968065,0.16763597,134.76,134.75,31.3252937]
[1742091969947,3.597e-05,134.76,134.75,55.37164897]
[1742091970838,7.866e-05,134.77,134.75,55.37164897]
[1742091971050,7.866e-05,134.77,134.76,47.8083874]
[1742091971250,7.866e-05,134.77,134.76,55.2288874]
[1742091971955,8.812e-05,134.78,134.76,55.2288874]
[1742091972161,0.18622824,134.8,134.79,20.0]
[1742091972464,0.18622824,134.8,134.79,43.9041937]
[1742091973039,2.824e-05,134.8,134.79,44.04635527]
[1742091973240,0.15186733,134.8,134.79,51.46525527]
[1742091974265,0.15183909,134.8,134.79,51.46525527]
[1742091975668,0.18183909,134.8,134.79,51.46525527]
[1742091975872,0.18183909,134.8,134.79,51.3230937]
[1742091976076,0.18183909,134.8,134.79,23.9041937]
[1742091976271,0.18183909,134.8,134.79,31.3230937]
[1742091976977,0.18183909,134.8,134.79,23.9041937]
[1742091977372,0.18183909,134.8,134.79,31.3230937]
[1742091983059,0.18183909,134.8,134.79,31.60741684]
[1742091983264,0.17059872,134.84,134.82,20.14216157]
[1742091983567,0.17059872,134.84,134.83,37.8608937]
[1742091986680,0.17059872,134.84,134.83,38.00305527]
[1742091987069,0.18220419,134.87,134.84,0.14216157]
[1742091987279,0.1360218,134.89,134.87,20.28432314]
[1742091987578,0.03,134.93,134.87,149.9043774]
[1742091987876,0.03,134.93,134.92,23.9041937]
[1742091988079,0.03,134.93,134.88,30.4441937]
[1742091988268,0.03,134.93,134.92,23.9041937]
[1742091990388,0.03,134.93,134.92,31.3158937]
[1742091990965,0.0001,134.93,134.92,55.50441054]
[1742091991283,0.03,134.96,134.92,55.50441054]
[1742091991583,0.03,134.96,134.95,23.9041937]